[Event "24th Hoogeschool Zeeland 2022"]
[Site "Vlissingen"]
[Date "2022.08.07"]
[Round "3.7"]
[White "Bui, Bao Anh Le"]
[Black "Schoppen, Casper"]
[Result "0-1"]
[ECO "B31"]
[WhiteElo "2109"]
[BlackElo "2507"]
[Annotator "TA"]
[PlyCount "80"]
[EventDate "2022.08.05"]
[EventType "swiss"]
[EventCountry "NED"]
[SourceTitle "playchess.com"]
[Source "ChessBase"]
[SourceQuality "1"]
[TimeControl "40/5400+30:1800+30"]

{[%evp 14,80,4,0,0,0,19,0,0,0,29,17,18,-20,0,0,6,0,0,0,0,0,0,-2,0,0,0,0,0,19,28,0,0,0,45,0,-5,-14,-10,-101,-103,-81,-83,-179,-185,-157,-66,-119,-146,-243,-55,-135,-135,-126,-118,-299,-260,-289,-294,-284,-301,-396,-398,-518,-492,-565,-582,-556,-539]} 1. e4 {[%emt 0:02:35]} c5 {[%emt 0:00:17]} 2. Nf3 {[%emt 0:00:30]} Nc6 {[%emt 0:00:34]} 3. Bb5 {[%emt 0:01:33]} g6 {[%emt 0:01:24]} 4. O-O {[%emt 0:01:44]} Bg7 {[%emt 0:00:05]} 5. Re1 {[%emt 0:01:06]} e5 {[%emt 0:01:57]} 6. c3 {[%emt 0:03:59][%cal Bc2c3,Bc3d4][%mdl 32]} Nge7 {[%emt 0:00:50]} 7. d3 {[%emt 0:23:00]} O-O {[%emt 0:01:54]} 8. Be3 {[%emt 0:06:00] 8.Nbd2 injects fresh life into this line.} d6 {[%emt 0:04:31] B31: Sicilian: 2...Nc6 3 Bb5 g6.} 9. h3 {[%emt 0:07:13]} h6 {[%emt 0:06:00]} 10. d4 {[%emt 0:13:29]} exd4 {[%emt 0:05:24] The position is equal.} 11. cxd4 {[%emt 0:00:35]} Qb6 {[%emt 0:02:24]} (11... d5 $5 {[%cal Rd5e4]} 12. Bxc6 Nxc6 13. exd5 cxd4 14. Nxd4 Nxd4 15. Bxd4 Qxd5 16. Bxg7 Qxd1 17. Rxd1 Kxg7 $11) 12. Bxc6 {[%emt 0:11:34]} Nxc6 {[%emt 0:07:46]} 13. Qd2 {[%emt 0:01:44]} (13. Nc3 $5 {[%cal Rc3d5]}) 13... Kh7 {[%emt 0:08:50][%cal Rc5d4] [#]} ({Much less strong is} 13... Nxd4 14. Nxd4 cxd4 15. Bxh6 $14) 14. Rd1 $146 {[%emt 0:02:20]} ({Predecessor:} 14. e5 Qd8 15. d5 Nxe5 16. Nxe5 Bxe5 17. Bxh6 Bg7 18. Bg5 f6 19. Bf4 g5 20. Be3 {1-0 (33) Jasik,K (2341)-Borgula,R (2237) Wysowa 2005}) 14... f5 {[%emt 0:02:34]} 15. Nc3 {[%emt 0:01:43]} cxd4 {[%emt 0:18:00]} 16. Bxd4 {[%emt 0:07:09]} ({Much weaker is} 16. Nxd4 f4 17. Ne6 (17. Nxc6 $2 fxe3 18. Qxe3 Qxe3 $19) 17... fxe3 $17) 16... Nxd4 {[%emt 0:00:17]} 17. Nxd4 {[%emt 0:00:07]} fxe4 {[%emt 0:00:27]} 18. Ndb5 {[%emt 0:02:25]} d5 {[%emt 0:02:24][%cal Oc8h3] White must now prevent ...Bxh3!} 19. Qe3 {[%emt 0:05:38]} d4 {[%emt 0:15:00]} 20. Nxd4 {[%emt 0:00:13]} Qxb2 {[%emt 0:00:18]} 21. Rab1 {[%emt 0:02:32]} Qa3 {[%emt 0:00:15]} 22. Rb3 {[%emt 0:00:14]} (22. Ndb5 $5 {[%cal Rb5a3]} Qa5 23. Nxe4 $11) 22... Qe7 {[%emt 0:02:23]} 23. Nxe4 {[%emt 0:01:55]} Kh8 {[%emt 0:05:50]} 24. Rdd3 {[%emt 0:02:26]} (24. Nf3 $14) 24... b6 $11 {[%emt 0:01:24]} 25. Nc6 {[%emt 0:00:36]} Qc7 {[%emt 0:00:50]} 26. Nb4 {[%emt 0:00:26]} (26. Rdc3 $11) 26... Bf5 $1 $17 {[%emt 0:01:43] And now ...Bxe4 would win. This bishop pair is nice.} 27. Nd5 {[%emt 0:00:35]} Qe5 {[%emt 0:00:44]} 28. f3 {[%emt 0:00:35]} (28. Ndc3 $17) 28... Qa1+ $19 {[%emt 0:03:37]} 29. Kh2 {[%emt 0:00:05]} Qxa2 {[%emt 0:00:30]} ({Black should play} 29... Rad8 $17 {Hoping for ...Qe5+.} 30. Nb4 Rxd3 31. Nxd3 Qxa2) 30. Rd2 {[%emt 0:00:19]} (30. Ne7 $1 $15) 30... Qa1 $17 {[%emt 0:00:32]} 31. g4 {[%emt 0:01:06]} (31. Ng3 $17) 31... Be6 $2 {[%emt 0:02:28]} (31... Bxe4 $19 32. Qxe4 Rae8) 32. Rbd3 {[%emt 0:00:22] [#]} ({Better is} 32. Ra3 $1 $15 Qe5+ 33. f4) 32... Rae8 $1 {[%emt 0:01:20]} 33. Kg2 {[%emt 0:00:17] [#]} Qe5 {[%emt 0:00:33] Against Nf4} 34. f4 $2 {[%emt 0:00:37] Now White is beyond hope.} (34. Ndc3 $17 {might work better.}) 34... Qb8 $19 {[%emt 0:00:24] Threatens to win with ...Bxd5.} 35. Rf2 {[%emt 0:00:30]} Qb7 {[%emt 0:00:41]} 36. Rfd2 {[%emt 0:00:42]} Rd8 {[%emt 0:00:50]} 37. Ndc3 {[%emt 0:00:30]} Rxd3 {[%emt 0:00:24]} 38. Rxd3 {[%emt 0:00:10]} Bxc3 {[%emt 0:02:52] Black is clearly winning.} 39. Rxc3 {[%emt 0:00:48]} Bd5 {[%emt 0:00:05]} 40. Qd4+ {[%emt 0:00:05]} Kg8 {[%emt 0:01:04] Weighted Error Value: White=0.37/Black=0.15 (very precise)} 0-1

[Event "24th Hoogeschool Zeeland 2022"]
[Site "Vlissingen"]
[Date "2022.08.07"]
[Round "3.8"]
[White "Ikonnikov, Vyacheslav"]
[Black "Bruil, Rembrandt"]
[Result "1-0"]
[ECO "D31"]
[WhiteElo "2493"]
[BlackElo "2204"]
[Annotator "TA"]
[PlyCount "71"]
[EventDate "2022.08.05"]
[EventType "swiss"]
[EventCountry "NED"]
[SourceTitle "playchess.com"]
[Source "ChessBase"]
[SourceQuality "1"]
[TimeControl "40/5400+30:1800+30"]

{[%evp 15,71,0,3,0,6,0,12,-20,-22,-20,0,-19,0,0,0,0,0,0,0,0,0,0,7,7,12,14,16,0,0,-27,-31,-40,0,-23,16,32,239,221,186,196,194,35,40,41,64,73,331,333,326,307,605,618,609,596,616,616,4132,1626]} 1. d4 {[%emt 0:00:03]} d5 {[%emt 0:00:06]} 2. c4 {[%emt 0:00:11]} e6 {[%emt 0:00:05]} 3. Nc3 {[%emt 0:00:15]} Be7 {[%emt 0:00:06]} 4. cxd5 {[%emt 0:00:46]} exd5 {[%emt 0:00:05]} 5. Bf4 {[%emt 0:00:06]} c6 {[%emt 0:00:04]} 6. e3 {[%emt 0:00:22]} Bf5 {[%emt 0:02:18]} 7. Nge2 {[%emt 0:00:47]} Nd7 {[%emt 0:04:28]} 8. Ng3 {[%emt 0:00:34]} Bg6 {[%emt 0:00:30]} 9. Be2 {[%emt 0:01:39] D31: Queen's Gambit Declined: Semi-Slav without ...Nf6 (+ Marshall Gambit and Noteboom) and Exchange Variation lines without ...Nf6.} Ngf6 {[%emt 0:03:23]} 10. h4 {[%emt 0:01:04] [#] Strongly threatening h5.} h5 {[%emt 0:01:41]} 11. Bd3 {[%emt 0:02:17] The position is equal.} Bxd3 {[%emt 0:00:18]} 12. Qxd3 {[%emt 0:00:04]} g6 {[%emt 0:00:22]} 13. Nge2 {[%emt 0:00:09]} Nf8 {[%emt 0:06:24]} 14. f3 {[%emt 0:01:48]} Ne6 {[%emt 0:03:05]} 15. Be5 {[%emt 0:18:38]} Bd6 {[%emt 0:03:48] [#]} 16. O-O-O $146 {[%emt 0:19:15]} ({Predecessor:} 16. Nf4 Bxe5 17. dxe5 Nxf4 18. exf4 Nd7 19. O-O-O Qe7 20. Qc2 Nb6 21. f5 gxf5 22. Qxf5 {1-0 (63) Giri,A (2764)-Magalashvili,D (2456) Chess.com INT 2020}) 16... Bxe5 {[%emt 0:03:54]} 17. dxe5 {[%emt 0:00:05]} Nd7 {[%emt 0:00:14]} 18. f4 {[%emt 0:00:05]} Ndc5 {[%emt 0:03:04]} 19. Qc2 {[%emt 0:00:30]} Qb6 {[%emt 0:00:59][%cal Oc5e4]} 20. Nd4 {[%emt 0:05:18]} O-O-O {[%emt 0:12:06]} 21. Nxe6 {[%emt 0:07:26]} fxe6 {[%emt 0:04:32]} 22. Qxg6 {[%emt 0:00:08]} Rhg8 {[%emt 0:00:12]} (22... Rdg8 $5 23. Qc2 Rg4 $11) 23. Qc2 {[%emt 0:00:15]} Rg3 {[%emt 0:00:43]} 24. Rhe1 {[%emt 0:08:21]} Qa6 {[%emt 0:12:27][%cal Od5d4]} 25. Kb1 {[%emt 0:00:41][%cal Oc3d5]} d4 $2 {[%emt 0:04:44] [#]} (25... Qb6 $14) 26. Rxd4 $18 {[%emt 0:17:26]} Rxd4 {[%emt 0:00:25]} 27. exd4 {[%emt 0:00:02]} Nd3 {[%emt 0:00:16]} 28. Re4 {[%emt 0:00:05]} (28. Rd1 $18) 28... Nb4 $1 $14 {[%emt 0:08:58]} 29. Qe2 {[%emt 0:00:12]} Qxe2 {[%emt 0:00:17]} 30. Rxe2 {[%emt 0:00:06][%mdl 4096] Endgame KRN-KRN} ({Inferior is} 30. Nxe2 Rxg2 31. a3 Nd5 $17) 30... Nd3 $2 {[%emt 0:00:29][%mdl 8192]} (30... Rg4 $16) 31. Ne4 $18 {[%emt 0:01:18]} Rg4 {[%emt 0:03:24]} 32. g3 {[%emt 0:00:14] Threatens to win with a3.} Nxf4 $2 {[%emt 0:01:38]} (32... Nb4 33. Re3 Nd5) 33. gxf4 {[%emt 0:00:13] White is clearly winning.} Rxf4 {[%emt 0:00:07]} 34. Nc5 {[%emt 0:01:13]} Rxd4 {[%emt 0:00:15]} 35. Nxe6 {[%emt 0:00:06]} Rxh4 {[%emt 0:00:04]} 36. Ng7 {[%emt 0:00:22] Weighted Error Value: White=0.20 (precise) /Black=0.53} 1-0

[Event "24th Hoogeschool Zeeland 2022"]
[Site "Vlissingen"]
[Date "2022.08.07"]
[Round "3.9"]
[White "Boelhouwer, Collin"]
[Black "Santiago, Yago De Moura"]
[Result "0-1"]
[ECO "C03"]
[WhiteElo "2151"]
[BlackElo "2513"]
[Annotator "TA"]
[PlyCount "66"]
[EventDate "2022.08.05"]
[EventType "swiss"]
[EventCountry "NED"]
[SourceTitle "playchess.com"]
[Source "ChessBase"]
[SourceQuality "1"]
[TimeControl "40/5400+30:1800+30"]

{[%evp 9,66,12,15,10,23,15,28,30,28,32,28,0,-18,-9,-15,-39,-27,-33,-30,-43,-8,-27,-10,-20,-10,-45,-33,-43,-42,-45,-41,-43,-47,-56,-44,-98,-92,-87,-89,-73,-102,-149,-129,-152,-154,-226,-217,-215,-215,-215,-225,-244,-246,-252,-254,-439,-419,-466,-449]} 1. e4 {[%emt 0:00:08]} e6 {[%emt 0:00:29]} 2. d4 {[%emt 0:00:10]} d5 {[%emt 0:00:09]} 3. Nd2 {[%emt 0:00:12]} h6 {[%emt 0:01:07]} 4. Ngf3 {[%emt 0:02:06]} Nf6 {[%emt 0:00:13]} 5. Bd3 {[%emt 0:01:25]} c5 $1 {[%emt 0:00:22]} 6. c3 {[%emt 0:03:24] C03: French Tarrasch: Unusual Black 3rd moves.} Nc6 {[%emt 0:01:59]} 7. O-O {[%emt 0:05:32]} cxd4 {[%emt 0:02:42]} 8. cxd4 {[%emt 0:01:03] White has an edge.} dxe4 {[%emt 0:00:45]} 9. Nxe4 {[%emt 0:00:56]} Be7 {[%emt 0:08:26]} 10. Ng3 {[%emt 0:09:03]} (10. Bc2 {deserves consideration.}) 10... O-O $11 {[%emt 0:05:20]} 11. a3 {[%emt 0:05:11]} b6 {[%emt 0:09:22] [#]} (11... Nxd4 $2 12. Nxd4 Qd5 13. Be2 $18) 12. Bc2 $146 {[%emt 0:06:58]} ({Predecessor:} 12. Bf4 Bb7 13. h3 Nd5 14. Bxh6 gxh6 15. Ne5 Nxe5 16. dxe5 Nf4 17. Qg4+ Bg5 18. Bc2 Bxg2 {0-1 (45) Brender,B (1282)-Landenberger,A (1564) Braunfels 2015}) 12... Ba6 {[%emt 0:02:37]} 13. Re1 {[%emt 0:00:41]} Rc8 {[%emt 0:01:47]} 14. Be3 {[%emt 0:12:37]} Re8 {[%emt 0:05:45]} 15. Rc1 {[%emt 0:02:58]} Nd5 {[%emt 0:08:12]} 16. Bb1 {[%emt 0:07:32]} Bf8 {[%emt 0:07:23]} 17. Qa4 {[%emt 0:08:44]} Bb7 {[%emt 0:05:03]} 18. Qc2 {[%emt 0:00:37][%csl Gb1][%cal Rc2h7] [#]} g6 {[%emt 0:11:20] Active counter play!} 19. Qd2 {[%emt 0:03:58]} Nxe3 {[%emt 0:01:12]} 20. Qxe3 {[%emt 0:01:09]} Bg7 {[%emt 0:00:47][%cal Rc6d4]} 21. Rcd1 {[%emt 0:00:43]} Re7 {[%emt 0:05:11]} 22. Ne5 {[%emt 0:09:34]} (22. h4 $15) 22... Nxe5 $17 {[%emt 0:07:58]} 23. dxe5 {[%emt 0:00:11]} Rd7 {[%emt 0:00:05]} 24. Rxd7 {[%emt 0:01:10]} Qxd7 {[%emt 0:00:03]} 25. h3 {[%emt 0:06:19]} ({White should try} 25. f4) 25... Rc4 {[%emt 0:03:48]} 26. Kh2 {[%emt 0:05:55]} Qd4 {[%emt 0:05:41] Inhibits f4.} 27. Qe2 {[%emt 0:01:51]} (27. Qxd4 $17 Rxd4 28. Kg1) 27... Rc5 $40 {[%emt 0:00:45][%cal Rc5e5][%mdl 128] Black attacks with force.} 28. Rd1 {[%emt 0:00:43]} Qxe5 {[%emt 0:00:15]} 29. Rd8+ {[%emt 0:00:37]} Kh7 {[%emt 0:00:44]} 30. Qxe5 {[%emt 0:01:05]} Bxe5 {[%emt 0:00:15] This bishop pair is nice.} 31. Rd7 {[%emt 0:00:20]} Rc7 {[%emt 0:00:13]} 32. Rd8 {[%emt 0:01:26] [#]} (32. Rxc7 Bxc7 33. Kg1) 32... Bxb2 {[%emt 0:06:32]} 33. Rd3 {[%emt 0:01:49]} Be5 {[%emt 0:00:00] Weighted Error Value: White=0.26 (precise) /Black=0.04 (flawless)} 0-1

[Event "24th Hoogeschool Zeeland 2022"]
[Site "Vlissingen"]
[Date "2022.08.07"]
[Round "3.10"]
[White "Vrolijk, Liam"]
[Black "Duchene, Rene"]
[Result "1-0"]
[ECO "A17"]
[WhiteElo "2464"]
[BlackElo "2137"]
[Annotator "TA"]
[PlyCount "49"]
[EventDate "2022.08.05"]
[EventType "swiss"]
[EventCountry "NED"]
[SourceTitle "playchess.com"]
[Source "ChessBase"]
[SourceQuality "1"]
[TimeControl "40/5400+30:1800+30"]

{[%evp 9,49,0,10,8,25,25,29,22,25,21,29,10,50,58,52,33,41,21,21,34,43,45,40,43,106,105,102,104,103,93,97,93,468,461,470,471,475,475,458,450,561,516]} 1. Nf3 {[%emt 0:00:05]} d5 {[%emt 0:00:10]} 2. e3 {[%emt 0:00:07]} Nf6 {[%emt 0:00:43]} 3. c4 {[%emt 0:00:06]} e6 {[%emt 0:00:09][%cal Be7e6,Be6d5,Bd5d4][%mdl 32]} 4. Nc3 {[%emt 0:00:07]} c5 {[%emt 0:00:14]} 5. cxd5 {[%emt 0:01:01]} exd5 {[%emt 0:00:07]} 6. Bb5+ {[%emt 0:00:56] A17: English Opening: 1...Nf6 with ...Bb4.} Bd7 {[%emt 0:05:50]} 7. Bxd7+ {[%emt 0:02:06]} Qxd7 {[%emt 0:01:32]} 8. O-O {[%emt 0:00:43] White has an edge.} Nc6 {[%emt 0:02:02]} 9. b3 {[%emt 0:03:04] [#]} d4 $146 {[%emt 0:19:54]} ({Predecessor:} 9... Be7 10. Bb2 O-O 11. Rc1 Rfd8 12. d4 cxd4 13. Nxd4 Rac8 14. Nce2 Ne5 15. Rxc8 Rxc8 {1-0 (62) Cornette,M (2590)-Cornette,D (2402) Vaujany 2015}) 10. Ne2 {[%emt 0:04:36]} d3 {[%emt 0:10:45]} 11. Nf4 {[%emt 0:02:10]} Bd6 {[%emt 0:00:54]} 12. Bb2 {[%emt 0:06:03]} Bxf4 {[%emt 0:05:14]} 13. exf4 {[%emt 0:00:14]} O-O {[%emt 0:01:23]} 14. Ne5 {[%emt 0:11:14]} Qd5 {[%emt 0:07:24]} 15. Re1 {[%emt 0:01:24]} Rfe8 {[%emt 0:05:02]} 16. Re3 {[%emt 0:00:51]} Nxe5 {[%emt 0:00:56]} (16... Qd6 $14) 17. fxe5 $16 {[%emt 0:01:15]} Nd7 {[%emt 0:00:56]} 18. f4 {[%emt 0:10:18][%cal Bf2f4,Bf4e5,Be5e6][%mdl 32]} f6 {[%emt 0:01:35]} 19. Qg4 {[%emt 0:05:36]} fxe5 {[%emt 0:01:38]} 20. fxe5 {[%emt 0:00:30] [#] Strongly threatening e6.} Re7 {[%emt 0:06:57][%mdl 8192] This costs Black the game.} (20... Qe6 $16 21. Qe4 b6) 21. e6 $18 {[%emt 0:03:07] White is clearly winning.} Nf8 {[%emt 0:00:54]} 22. Bf6 {[%emt 0:00:57]} Rae8 {[%emt 0:00:09]} 23. Bxe7 {[%emt 0:00:29]} Rxe7 {[%emt 0:00:01]} 24. Rf1 {[%emt 0:02:35]} ({Less strong is} 24. Rae1 a6 25. Qh4 Re8) 24... b5 {[%emt 0:01:55]} 25. Qf4 {[%emt 0:03:25] Weighted Error Value: White=0.01 (flawless) /Black=0.55} 1-0

[Event "24th Hoogeschool Zeeland 2022"]
[Site "Vlissingen"]
[Date "2022.08.07"]
[Round "3.11"]
[White "Dhulipalla Bala Chandra Prasad"]
[Black "Zevenhuizen, Daniel"]
[Result "1-0"]
[ECO "E68"]
[WhiteElo "2423"]
[BlackElo "2168"]
[Annotator "TA"]
[PlyCount "53"]
[EventDate "2022.08.05"]
[EventType "swiss"]
[EventCountry "NED"]
[SourceTitle "playchess.com"]
[Source "ChessBase"]
[SourceQuality "1"]
[TimeControl "40/5400+30:1800+30"]

{[%evp 22,53,44,23,54,57,70,35,29,5,13,22,120,111,134,103,103,117,135,61,161,186,391,382,352,358,327,329,345,329,1106,1043,1160,938]} 1. d4 {[%emt 0:03:04]} g6 {[%emt 0:04:53]} 2. c4 {[%emt 0:00:41]} Nf6 {[%emt 0:00:16]} 3. g3 {[%emt 0:00:05]} Bg7 {[%emt 0:00:09]} 4. Bg2 {[%emt 0:00:06]} O-O {[%emt 0:00:09]} 5. Nc3 {[%emt 0:00:04]} d6 {[%emt 0:00:06]} 6. Nf3 {[%emt 0:00:04]} Nbd7 {[%emt 0:01:25]} 7. O-O {[%emt 0:00:09]} e5 {[%emt 0:00:06]} 8. e4 {[%emt 0:00:13]} exd4 {[%emt 0:00:23]} 9. Nxd4 {[%emt 0:00:05]} Re8 {[%emt 0:00:07]} 10. h3 {[%emt 0:02:58]} a6 {[%emt 0:00:08]} 11. Re1 {[%emt 0:08:47]} Rb8 {[%emt 0:00:41]} 12. Rb1 {[%emt 0:05:00]} Qe7 {[%emt 0:32:39] E68: King's Indian: Fianchetto: 6...Nbd7 7 0-0 e5 8 e4.} 13. b3 {[%emt 0:11:46]} c5 {[%emt 0:06:43]} 14. Nc2 {[%emt 0:08:26] 0x0.0013bb155f5ddp-1022s more active pieces.} b5 {[%emt 0:00:51] White is slightly better.} 15. Ne3 {[%emt 0:02:48] [#]} Bb7 $146 {[%emt 0:12:34]} (15... b4 $5 {[%cal Rb4c3]} 16. Ncd5 Qd8 $11) ({Predecessor:} 15... Qf8 16. Bb2 Re6 17. Qc2 Bb7 18. cxb5 axb5 19. Nxb5 Bxe4 {½-½ (19) Ignacz,M (2286)-Galyas,M (2424) Budapest 2005}) 16. Bb2 {[%emt 0:02:18]} Nb6 {[%emt 0:09:33]} (16... b4 $11 {keeps the balance.} 17. Ncd5 Qf8) 17. cxb5 $16 {[%emt 0:22:47]} axb5 {[%emt 0:00:15]} 18. Nxb5 {[%emt 0:00:10]} Nxe4 {[%emt 0:06:08]} 19. Bxg7 {[%emt 0:05:26]} Kxg7 {[%emt 0:00:03] [#]} 20. Qc2 {[%emt 0:00:25]} (20. b4 $1 $16) 20... h5 {[%emt 0:13:54] [#]} ({Black should try} 20... Qd7 $1 $14 21. a4 Re6) 21. Nc4 $1 $18 {[%emt 0:07:25][%cal Be3c4,Bc4d6,Bd6f5][%mdl 32]} Qd7 {[%emt 0:01:28]} (21... Nc8 22. Nc3 d5) 22. Bxe4 {[%emt 0:01:59]} Rxe4 {[%emt 0:07:12]} 23. Rxe4 {[%emt 0:00:41] Dancing on a razor blade.} ({Weaker is} 23. Ncxd6 Rxe1+ 24. Rxe1 Qc6 25. Qc3+ Kg8 $18) 23... Bxe4 {[%emt 0:00:05]} 24. Qxe4 {[%emt 0:00:07]} Qxb5 {[%emt 0:00:03]} 25. Nxd6 {[%emt 0:00:09]} Qb4 {[%emt 0:00:41]} (25... Qd7) 26. Qe5+ {[%emt 0:00:21]} Kg8 {[%emt 0:00:08] [#]} 27. Nf5 $1 {[%emt 0:01:12][%mdl 512] Weighted Error Value: White=0.11 (very precise) /Black=0.67} 1-0